bitfinex-derivatives/quotes_BTCF0:USTF0_20240829
["timestamp","ask_amount","ask_price","bid_price","bid_amount"]
[1724895945308,0.084728,58997.0,58996.0,0.41144512]
[1724895945505,0.084728,58997.0,58996.0,0.3608]
[1724895945714,0.084728,58997.0,58990.0,0.084737]
[1724895945715,0.084736,58992.0,58990.0,0.084737]
[1724895945910,0.29852296,58992.0,58991.0,0.084737]
[1724895946612,0.38325996,58992.0,58989.0,0.1604]
[1724895946911,0.38325996,58992.0,58990.0,0.084738]
[1724895947610,0.29,58992.0,58991.0,0.084737]
[1724895947813,0.08473,58996.0,58989.0,0.1604]
[1724895948009,0.08473,58996.0,58993.0,0.084734]
[1724895948206,0.11554097,58996.0,58993.0,0.084734]
[1724895948408,0.11554097,58996.0,58994.0,0.084732]
[1724895949315,0.11554097,58996.0,58995.0,0.3608]
[1724895949515,0.11654097,58996.0,58994.0,0.445532]
[1724895949915,0.11654097,58996.0,58995.0,0.084731]
[1724895949916,0.03181097,58996.0,58995.0,0.084731]
[1724895950116,0.03181097,58996.0,58995.0,0.160831]
[1724895951416,0.001,58996.0,58995.0,0.160831]
[1724895956132,0.1336,59008.0,58995.0,0.669351]
[1724895956327,0.29,59009.0,59006.0,0.084715]
[1724895956524,0.19134812,59006.0,59005.0,0.3608]
[1724895956724,0.19134812,59006.0,59000.0,0.3608]
[1724895956725,0.19134812,59006.0,59000.0,0.445524]
[1724895957034,0.29,59002.0,59000.0,0.445524]
[1724895958231,0.29125417,59007.0,59000.0,0.3608]
[1724895958433,0.29125417,59007.0,59006.0,0.3608]
[1724895958621,0.29125417,59007.0,59006.0,0.445515]
[1724895958824,0.29125417,59007.0,59006.0,0.084715]
[1724895958825,0.29025417,59007.0,59006.0,0.084715]
[1724895959643,0.29125417,59007.0,59006.0,0.084715]
[1724895960641,0.29125417,59007.0,59002.0,0.084721]
[1724895960844,0.29125417,59007.0,59001.0,0.0847]
[1724895961046,0.29,59002.0,58995.0,0.07635417]
[1724895961245,0.29,59002.0,58981.0,0.3608]
[1724895961246,0.6508,58996.0,58987.0,0.0779]
[1724895961445,0.29,58988.0,58987.0,0.0779]
[1724895961648,0.5,58988.0,58987.0,0.0779]
[1724895962152,0.29,58988.0,58987.0,0.0779]
[1724895962946,0.291,58988.0,58987.0,0.0779]
[1724895965147,0.291,58988.0,58981.0,0.3608]
[1724895965148,0.084756,58978.0,58970.0,0.3608]
[1724895965351,0.084757,58978.0,58971.0,0.234]
[1724895965552,0.084758,58977.0,58971.0,0.234]
[1724895965955,0.29,58972.0,58965.0,0.3608]
[1724895966343,0.18814709,58971.0,58967.0,0.084771]
[1724895966854,0.18814709,58971.0,58970.0,0.3608]
[1724895967352,0.29,58972.0,58970.0,0.3608]
[1724895967558,0.084761,58975.0,58970.0,0.3608]
[1724895967752,0.084761,58975.0,58971.0,0.0822]
[1724895967949,0.001,58972.0,58971.0,0.0822]
[1724895968257,0.001,58972.0,58971.0,0.443]
[1724895968858,0.085761,58975.0,58971.0,0.443]
[1724895969456,0.085761,58975.0,58972.0,0.0826]
[1724895969661,0.084761,58975.0,58972.0,0.0826]
[1724895970864,0.084761,58975.0,58973.0,0.0817]
[1724895973066,0.084761,58975.0,58972.0,0.0826]
[1724895974355,0.593482,58974.0,58965.0,0.3608]
[1724895974565,0.593482,58974.0,58954.0,0.3608]
[1724895974566,0.6508,58966.0,58954.0,0.6012]
[1724895974769,0.29,58955.0,58954.0,0.2404]
[1724895975265,0.29,58955.0,58954.0,0.0801]
[1724895975466,0.29,58955.0,58945.0,0.1608]
[1724895975669,0.3608,58958.0,58956.0,0.084786]
[1724895975871,0.3608,58958.0,58957.0,0.1624]
[1724895976054,0.03055148,58960.0,58957.0,0.5232]
[1724895976258,0.00025439,58966.0,58965.0,0.084774]
[1724895976454,0.03025,58966.0,58965.0,0.084774]
[1724895976666,0.17760499,58966.0,58957.0,0.5232]
[1724895976864,0.17760499,58966.0,58962.0,0.084777]
[1724895977368,0.29,58965.0,58962.0,0.084777]
[1724895977557,0.3608,58964.0,58962.0,0.084777]
[1724895977763,0.084778,58963.0,58957.0,0.247184]
[1724895977968,0.084778,58963.0,58957.0,0.1624]
[1724895978266,0.19381904,58962.0,58957.0,0.1624]
[1724895978462,0.3608,58958.0,58957.0,0.1624]
[1724895978666,0.084794,58952.0,58933.0,0.00116]
[1724895978863,0.29,58936.0,58932.0,0.3608]
[1724895979272,0.29,58936.0,58924.0,0.1616]
[1724895979273,0.6508,58936.0,58926.0,0.3608]
[1724895979573,0.29,58927.0,58926.0,0.3608]
[1724895980267,0.29,58927.0,58916.0,0.084]
[1724895980474,0.374836,58922.0,58917.0,0.0836]
[1724895981068,0.29,58922.0,58917.0,0.0836]
[1724895981465,0.03130975,58927.0,58917.0,0.0836]
[1724895981669,0.13528,58927.0,58918.0,0.084]
[1724895981961,0.3608,58925.0,58921.0,0.084837]
[1724895982177,0.3608,58925.0,58922.0,0.084836]
[1724895982372,0.29,58933.0,58918.0,0.084]
[1724895982565,0.29,58933.0,58922.0,0.3608]
[1724895982765,0.001,58922.0,58918.0,0.084]
[1724895983263,0.3608,58943.0,58932.0,0.084822]
[1724895983467,0.3608,58943.0,58936.0,0.084816]
[1724895985264,0.00125439,58937.0,58936.0,0.084816]
[1724895986582,0.3608,58943.0,58942.0,0.084807]
[1724895988282,0.3608,58943.0,58942.0,0.088807]
[1724895988677,0.00025439,58948.0,58947.0,0.0848]
[1724895988885,0.36168,58957.0,58956.0,0.084787]
[1724895989070,0.36926198,58957.0,58956.0,0.084787]
[1724895989270,0.56513327,58957.0,58956.0,0.084787]
[1724895989983,0.59585004,58957.0,58956.0,0.084787]
[1724895992383,0.00025439,58962.0,58961.0,0.08478]
[1724895993782,0.00025439,58962.0,58961.0,0.67836]
[1724895993981,0.3608,58971.0,58970.0,0.084767]
[1724895995176,0.3920259,58971.0,58970.0,0.084767]
[1724895995582,0.3608,58971.0,58970.0,0.084767]
[1724895995779,0.3608,58971.0,58970.0,0.085767]
[1724895997884,0.3608,58981.0,58980.0,0.084753]
[1724895998079,0.03045281,58984.0,58983.0,0.084748]
[1724895998381,0.3608,58987.0,58978.0,0.3608]
[1724895998579,0.3608,58987.0,58985.0,0.084745]
[1724895999288,0.3608,58987.0,58986.0,0.084744]
[1724895999482,0.084746,58985.0,58981.0,0.084751]
[1724895999682,0.3608,58982.0,58981.0,0.084751]
[1724896000193,0.3608,58982.0,58980.0,0.00025439]
[1724896000582,0.3608,58982.0,58980.0,0.08500539]
[1724896001389,0.3668,58982.0,58980.0,0.08600539]
[1724896001788,0.451551,58982.0,58980.0,0.00125439]
[1724896001989,0.3668,58982.0,58980.0,0.00125439]
[1724896003786,0.3668,58982.0,58981.0,0.084751]
[1724896004991,0.3668,58982.0,58981.0,0.085751]
[1724896005593,0.3668,58982.0,58981.0,0.163051]
[1724896005795,0.3668,58982.0,58981.0,0.243051]
[1724896006098,0.006,58982.0,58981.0,0.243051]
[1724896016095,0.006,58982.0,58981.0,0.085751]
[1724896016298,0.45155,58982.0,58981.0,0.001]
[1724896016498,0.084757,58978.0,58968.0,0.1588]
[1724896016702,0.6508,58972.0,58968.0,0.1588]
[1724896017097,0.3608,58972.0,58971.0,0.084766]
[1724896018501,0.39177685,58972.0,58971.0,0.084766]
[1724896018996,0.00025439,58977.0,58976.0,0.084759]
[1724896019695,0.03106549,58977.0,58976.0,0.084759]
[1724896019996,0.00025439,58977.0,58976.0,0.084759]
[1724896020402,0.00825439,58977.0,58976.0,0.085759]
[1724896025599,0.08474,58989.0,58988.0,0.084741]
[1724896026006,0.03106208,58989.0,58984.0,0.084746]
[1724896026300,0.084752,58981.0,58980.0,0.084753]
[1724896026504,0.084752,58981.0,58976.0,0.001]
[1724896026505,0.29,58984.0,58983.0,0.084748]
[1724896027297,0.04522993,58984.0,58983.0,0.084748]
[1724896027698,0.05822993,58984.0,58983.0,0.085748]
[1724896027900,0.14297693,58984.0,58983.0,0.085748]
[1724896029203,0.14297693,58984.0,58983.0,0.086748]
[1724896030808,0.013,58984.0,58983.0,0.086748]
[1724896031105,0.04413878,58984.0,58983.0,0.086748]
[1724896032107,0.04413878,58984.0,58983.0,0.085748]
[1724896032306,1.43173878,58984.0,58978.0,0.00025439]
[1724896032501,0.084749,58983.0,58978.0,0.00025439]
[1724896032702,0.084749,58983.0,58982.0,0.08475]
[1724896034210,0.03813878,58984.0,58983.0,0.084748]
[1724896034510,0.03113878,58984.0,58983.0,0.084748]
[1724896034714,0.57172,58985.0,58983.0,0.084748]
[1724896035012,0.5708,58985.0,58984.0,0.084747]
[1724896035311,0.68565193,58985.0,58984.0,0.084747]
[1724896035809,0.084753,58980.0,58971.0,0.084765]
[1724896036015,0.3608,58972.0,58971.0,0.084765]
[1724896037713,0.3668,58972.0,58971.0,0.085765]
[1724896038305,0.3658,58972.0,58971.0,0.084765]
[1724896039607,0.005,58972.0,58971.0,0.084765]
[1724896039817,0.3608,58977.0,58976.0,0.084759]
[1724896040009,0.39112103,58977.0,58976.0,0.084759]
[1724896040516,0.67093672,58977.0,58973.0,0.084762]
[1724896040814,0.29,58975.0,58971.0,0.001]
[1724896041010,0.3608,58972.0,58971.0,0.001]
[1724896041211,0.3608,58972.0,58970.0,0.084767]
[1724896042114,0.3608,58972.0,58971.0,0.084766]
[1724896043509,0.39912103,58977.0,58976.0,0.084759]
[1724896044212,0.47587803,58977.0,58972.0,0.084763]
[1724896044413,0.47587803,58977.0,58973.0,0.084763]
[1724896044817,0.48787803,58977.0,58976.0,0.001]
[1724896045417,0.48187803,58977.0,58973.0,0.084763]
[1724896045921,0.48187803,58977.0,58975.0,0.084759]
[1724896046416,0.39712103,58977.0,58976.0,0.085759]
[1724896046811,0.39112103,58977.0,58976.0,0.085759]
[1724896047120,0.40212103,58977.0,58976.0,0.086759]
[1724896048008,0.40212103,58977.0,58976.0,0.085759]
[1724896048205,0.39712103,58977.0,58976.0,0.085759]
[1724896049216,0.39712103,58977.0,58976.0,0.169559]
[1724896050420,0.39712103,58977.0,58976.0,0.168559]
[1724896050606,0.39112103,58977.0,58976.0,0.168559]
[1724896051720,0.39412103,58977.0,58976.0,0.168559]
[1724896053315,0.39112103,58977.0,58976.0,0.168559]
[1724896053520,0.39412103,58977.0,58976.0,0.168559]
[1724896055016,0.03332103,58977.0,58976.0,0.168559]
[1724896055714,0.03332103,58977.0,58976.0,0.677239]
[1724896055918,0.03134065,58982.0,58981.0,0.084751]
[1724896057215,0.03934065,58982.0,58981.0,0.085751]
[1724896057517,0.03934065,58982.0,58981.0,0.084751]
[1724896057823,0.03734065,58982.0,58981.0,0.085751]
[1724896058213,0.03734065,58982.0,58981.0,0.244351]
[1724896060715,0.03734065,58982.0,58981.0,1.437742]
[1724896060916,0.00866066,58996.0,58981.0,1.26824]
[1724896061115,0.084734,58994.0,58992.0,0.084735]
[1724896061323,0.37352182,58998.0,58992.0,0.084735]
[1724896061513,0.3608,58998.0,58992.0,0.084735]
[1724896061926,0.3608,58998.0,58981.0,0.1596]
[1724896061927,0.084732,58995.0,58994.0,0.084732]
[1724896064125,0.089732,58995.0,58994.0,0.085732]
[1724896065215,0.089732,58995.0,58989.0,0.00025439]
[1724896065421,0.445538,58990.0,58989.0,0.00025439]
[1724896066619,0.450538,58990.0,58989.0,0.00125439]
[1724896067622,0.450538,58990.0,58989.0,0.00225439]
[1724896068328,0.450538,58990.0,58989.0,0.00125439]
[1724896068530,0.451538,58990.0,58989.0,0.00225439]
[1724896070123,0.451538,58990.0,58972.0,0.35785206]
[1724896070124,1.47536,58990.0,58972.0,0.35785206]
[1724896070331,0.3608,58976.0,58973.0,0.084762]
[1724896070818,0.3608,58976.0,58975.0,0.08476]
[1724896072223,0.3608,58976.0,58975.0,0.08776]
[1724896072925,0.3608,58976.0,58975.0,0.08576]
[1724896073628,0.3618,58976.0,58975.0,0.08576]
[1724896075431,0.446559,58976.0,58975.0,0.001]
[1724896075623,0.4777639,58976.0,58975.0,0.001]
[1724896076227,0.084766,58971.0,58970.0,0.08025439]
[1724896076433,0.445566,58971.0,58970.0,0.00025439]
[1724896077528,0.3608,58971.0,58970.0,0.00025439]
[1724896077834,0.3608,58971.0,58970.0,0.01125439]
[1724896078321,0.3608,58971.0,58970.0,0.09602139]
[1724896078931,0.3920049,58976.0,58975.0,0.08476]
[1724896079831,0.0312049,58976.0,58975.0,0.44556]
[1724896080033,0.3608,58983.0,58980.0,0.084753]
[1724896081227,0.03147949,58981.0,58980.0,0.084753]
[1724896081425,0.00025439,58981.0,58980.0,0.084753]
[1724896081622,0.00025439,58981.0,58980.0,1.555193]
[1724896081623,0.00925439,58981.0,58980.0,1.555193]
[1724896081928,0.00925439,58981.0,58980.0,0.955193]
[1724896082232,0.00925439,58981.0,58980.0,1.555193]
[1724896082934,0.00925439,58981.0,58980.0,0.955193]
[1724896083426,0.00925439,58981.0,58980.0,1.555193]
[1724896084227,0.00925439,58981.0,58980.0,1.639946]
[1724896086534,0.00925439,58981.0,58980.0,1.039946]
[1724896088832,0.0310907,58983.0,58982.0,0.1695]
[1724896089030,0.3608,58990.0,58989.0,0.08474]
[1724896089241,0.39068086,58990.0,58989.0,0.08474]
[1724896090131,0.03688086,58990.0,58989.0,0.08574]
[1724896091031,0.03988086,58990.0,58989.0,0.08674]
[1724896096935,0.03988086,58990.0,58989.0,0.17148]
[1724896097133,0.03988086,58990.0,58989.0,0.08674]
[1724896099537,0.03988086,58990.0,58989.0,0.44754]
[1724896103840,0.03988086,58990.0,58989.0,0.08674]
[1724896104137,0.03988086,58990.0,58989.0,0.44754]
[1724896104440,0.03988086,58990.0,58989.0,0.08674]
[1724896105347,0.20935686,58990.0,58989.0,0.002]
[1724896105643,0.084746,58985.0,58984.0,0.00025439]
[1724896105835,0.084746,58985.0,58979.0,0.084753]
[1724896105836,0.3608,58985.0,58975.0,0.08476]
[1724896106041,0.3608,58979.0,58975.0,0.08476]
[1724896106239,0.00831607,58978.0,58975.0,0.08476]
[1724896106840,0.084759,58976.0,58972.0,0.35785306]
[1724896107443,0.084759,58976.0,58975.0,0.001]
[1724896108348,0.084759,58976.0,58973.0,0.084762]
[1724896109546,0.11577248,58976.0,58973.0,0.084762]
[1724896109849,0.11577248,58976.0,58975.0,0.001]
[1724896110744,0.11577248,58976.0,58973.0,0.089762]
[1724896110947,0.3608,58974.0,58973.0,0.089762]
[1724896111149,0.3608,58974.0,58973.0,0.087762]
[1724896111652,0.3608,58974.0,58973.0,0.084762]
[1724896112948,0.3608,58974.0,58973.0,0.086762]
[1724896113455,0.3608,58974.0,58973.0,0.084762]
[1724896113748,0.3608,58974.0,58973.0,0.089762]
[1724896119957,0.4808,58974.0,58973.0,0.089762]
[1724896122253,0.27560486,58974.0,58973.0,0.089762]
[1724896122458,0.12,58974.0,58973.0,0.089762]
[1724896124855,0.33,58974.0,58973.0,0.089762]
[1724896125568,0.12,58974.0,58973.0,0.089762]
[1724896127364,0.204761,58974.0,58973.0,0.089762]
[1724896127759,0.565561,58974.0,58973.0,0.089762]
[1724896129271,0.565561,58974.0,58973.0,0.005]
[1724896129472,0.084764,58972.0,58971.0,0.00025439]
[1724896129970,0.169528,58972.0,58971.0,0.00025439]
[1724896130874,0.169528,58972.0,58971.0,0.00425439]
[1724896131873,0.169528,58972.0,58971.0,0.00925439]
[1724896132569,1.47108503,58972.0,58971.0,0.00925439]
[1724896132969,1.38632103,58972.0,58958.0,0.1634]
[1724896133166,0.12,58959.0,58958.0,0.1634]
[1724896133478,0.82167703,58959.0,58953.0,0.084791]
[1724896133777,0.12,58954.0,58953.0,0.0769]
[1724896134278,0.106,58954.0,58953.0,0.0769]
[1724896134877,0.092,58954.0,58953.0,0.0769]
[1724896135078,0.084783,58959.0,58953.0,0.0769]
[1724896135268,0.12,58956.0,58954.0,0.084789]
[1724896136174,0.084785,58958.0,58957.0,0.084785]
[1724896136175,0.12,58958.0,58957.0,0.084785]
[1724896137771,0.121,58958.0,58957.0,0.088785]
[1724896138483,0.121,58958.0,58957.0,0.094785]
[1724896138484,0.15231314,58958.0,58957.0,0.094785]
[1724896138785,0.23709714,58958.0,58957.0,0.01]
[1724896139168,0.42497344,58958.0,58957.0,0.01]
[1724896142080,0.03231314,58958.0,58957.0,0.455586]
[1724896143181,0.084763,58973.0,58971.0,0.084766]
[1724896143374,0.12,58972.0,58965.0,0.12]
[1724896143678,0.12,58971.0,58965.0,0.12]
[1724896144086,0.11541372,58973.0,58972.0,0.084764]
[1724896146577,0.11641372,58973.0,58972.0,0.084764]
[1724896147282,0.03165072,58973.0,58972.0,0.084764]
[1724896151979,0.03165072,58973.0,58964.0,0.3608]
[1724896152187,0.39245072,58973.0,58964.0,0.3608]
[1724896152487,0.15697316,58973.0,58964.0,0.3608]
[1724896152678,0.084764,58972.0,58964.0,0.3608]
[1724896152874,0.084773,58967.0,58964.0,0.3608]
[1724896153080,0.084774,58966.0,58964.0,0.3608]
[1724896153286,0.084774,58965.0,58964.0,0.3688]
[1724896153681,0.084774,58965.0,58964.0,0.3758]
[1724896154391,0.085774,58965.0,58964.0,0.3678]
[1724896154687,0.086774,58965.0,58964.0,0.3758]
[1724896156083,0.11759493,58965.0,58964.0,0.3758]
[1724896161506,0.11759493,58965.0,58964.0,0.015]
[1724896161692,0.11759493,58965.0,58964.0,0.3758]
[1724896166001,0.23759493,58965.0,58964.0,0.3758]
[1724896170507,0.23759493,58965.0,58964.0,0.015]
[1724896170702,0.23759493,58965.0,58964.0,0.3758]
[1724896171608,0.23759493,58965.0,58964.0,0.460576]
[1724896171810,0.03282093,58965.0,58964.0,0.460576]
[1724896173099,0.03282093,58965.0,58964.0,0.545352]
[1724896173304,0.03282093,58965.0,58964.0,1.054152]
[1724896173709,0.12,58972.0,58971.0,0.084766]
[1724896173907,0.12,58972.0,58971.0,0.445566]
[1724896175815,0.15101483,58972.0,58971.0,0.447566]
[1724896176914,0.15101483,58972.0,58971.0,0.086766]
[1724896177116,0.15101483,58972.0,58971.0,0.447566]
[1724896178209,0.15101483,58972.0,58971.0,0.532332]
[1724896178517,0.084735,58993.0,58971.0,0.567566]
[1724896178705,0.4363,58995.0,58983.0,0.445548]
[1724896178905,0.13368,58994.0,58988.0,0.3608]
[1724896179104,0.18506814,58991.0,58988.0,0.3608]
[1724896179309,0.21,58991.0,58990.0,0.084738]
[1724896180118,0.33,58991.0,58990.0,0.084738]
[1724896180320,0.344,58991.0,58990.0,0.084738]
[1724896180507,0.358,58991.0,58990.0,0.085738]
[1724896181016,0.238,58991.0,58990.0,0.085738]
[1724896181309,0.358,58991.0,58990.0,0.085738]
[1724896181709,0.148,58991.0,58990.0,0.085738]
[1724896181915,0.148,58991.0,58990.0,0.086738]
[1724896182216,0.028,58991.0,58990.0,0.086738]
[1724896190109,0.014,58991.0,58990.0,0.085738]
[1724896190310,0.015,58991.0,58990.0,0.093738]
[1724896190511,0.001,58991.0,58990.0,0.092738]
[1724896190711,0.001,58991.0,58990.0,0.096738]
[1724896191820,0.03038052,58992.0,58991.0,0.084737]
[1724896192114,0.00025439,58996.0,58995.0,0.084731]
[1724896192311,0.00025439,58996.0,58995.0,0.445531]
[1724896192921,0.03002821,58996.0,58995.0,0.445531]
[1724896193512,0.03602821,58996.0,58995.0,0.446531]
[1724896193711,0.04002821,58996.0,58995.0,0.446531]
[1724896195319,0.04002821,58996.0,58995.0,0.001]
[1724896195616,0.12475821,58996.0,58995.0,0.001]
[1724896196615,0.12175821,58996.0,58995.0,0.001]
[1724896196815,0.12675821,58996.0,58995.0,0.002]
[1724896198315,0.12175821,58996.0,58995.0,0.001]
[1724896198616,0.12675821,58996.0,58995.0,0.002]
[1724896199115,0.12175821,58996.0,58995.0,0.001]
[1724896199322,0.12875821,58996.0,58995.0,0.002]
[1724896199526,0.12975821,58996.0,58995.0,0.002]
[1724896199723,0.12975821,58996.0,58995.0,0.3628]
[1724896200225,0.12175821,58996.0,58995.0,0.3618]
[1724896200419,0.12175821,58996.0,58995.0,0.3628]
[1724896200420,0.13075821,58996.0,58995.0,0.3628]
[1724896201112,0.12375821,58996.0,58995.0,0.3618]
[1724896201320,0.13275821,58996.0,58995.0,0.3628]
[1724896202418,0.13275821,58996.0,58995.0,0.002]
[1724896202729,0.13275821,58996.0,58995.0,0.3628]
[1724896202925,0.03902821,58996.0,58995.0,0.446531]
[1724896203117,0.13375821,58996.0,58995.0,0.086731]
[1724896203314,0.13375821,58996.0,58995.0,0.002]
[1724896203522,0.42375821,58996.0,58995.0,0.002]
[1724896203719,0.61998601,58996.0,58995.0,0.002]
[1724896206930,0.04902821,58996.0,58995.0,0.447531]
[1724896209130,0.04902821,58996.0,58995.0,0.086731]
[1724896209326,0.04902821,58996.0,58995.0,0.447531]
[1724896210024,0.04902821,58996.0,58995.0,0.086731]
[1724896210226,0.04902821,58996.0,58995.0,0.447531]
[1724896216326,0.04902821,58996.0,58995.0,0.086731]
[1724896216527,0.04902821,58996.0,58995.0,0.447531]
[1724896221529,0.084718,59004.0,58995.0,0.002]
[1724896221837,0.084728,58998.0,58996.0,0.515829]
[1724896222035,0.12,58997.0,58996.0,0.515829]
[1724896222338,0.204728,58997.0,58996.0,0.515829]
[1724896222831,0.08473,58996.0,58995.0,0.002]
[1724896223131,0.08473,58996.0,58989.0,0.3608]
[1724896223132,0.084738,58990.0,58989.0,0.3608]
[1724896223334,0.084738,58990.0,58985.0,0.27334345]
[1724896223335,0.08474,58989.0,58985.0,0.27334345]
[1724896223539,0.084744,58986.0,58985.0,0.00025439]
[1724896224832,0.084744,58986.0,58985.0,0.00225439]
[1724896225026,0.084744,58986.0,58985.0,0.08025439]
[1724896225229,0.12,58987.0,58985.0,0.23940039]
[1724896226031,0.20422,58995.0,58985.0,0.23940039]
[1724896226236,0.12,58994.0,58985.0,0.23940039]
[1724896226536,0.29715872,58994.0,58985.0,0.23940039]
[1724896226738,0.29715872,58994.0,58985.0,0.23740039]
[1724896226934,0.08474,58989.0,58985.0,0.23640039]
[1724896227139,0.08474,58989.0,58985.0,0.23940039]
[1724896227832,0.08474,58989.0,58986.0,0.084744]
[1724896230239,0.08474,58989.0,58986.0,0.085744]
[1724896230432,0.08474,58989.0,58986.0,0.087744]
[1724896231434,0.08474,58989.0,58987.0,0.084743]
[1724896232840,0.15009132,58994.0,58988.0,0.08474]
[1724896232841,0.084736,58992.0,58988.0,0.08474]
[1724896233041,0.084736,58992.0,58989.0,0.3608]
[1724896233237,0.084736,58992.0,58989.0,0.445539]
[1724896234642,0.084736,58992.0,58990.0,0.084738]
[1724896235043,0.084736,58992.0,58991.0,0.084737]
[1724896235243,0.085736,58992.0,58991.0,0.084737]
[1724896235835,0.001,58992.0,58991.0,0.084737]
[1724896236037,0.03009132,58994.0,58993.0,0.084734]
[1724896236234,0.084731,58995.0,58993.0,0.084734]
[1724896236445,0.084731,58995.0,58994.0,0.445533]
[1724896236641,0.11519974,58995.0,58994.0,0.445533]
[1724896237851,0.03746874,58995.0,58994.0,0.446533]
[1724896238544,0.04446874,58995.0,58994.0,0.447533]
[1724896239141,0.04446874,58995.0,58994.0,0.441563]
[1724896240749,0.04446874,58995.0,58994.0,0.447533]
[1724896243942,0.04446874,58995.0,58994.0,0.086733]
[1724896244145,0.04446874,58995.0,58994.0,0.447533]
[1724896246041,0.16446874,58995.0,58994.0,0.447533]
[1724896246952,0.16446874,58995.0,58994.0,0.086733]
[1724896247253,0.16446874,58995.0,58994.0,0.447533]
[1724896247653,0.24919974,58995.0,58994.0,0.447533]
[1724896248141,0.33393074,58995.0,58994.0,0.002]
[1724896250846,0.24919974,58995.0,58994.0,0.002]
[1724896254253,0.24919974,58995.0,58994.0,0.3628]
[1724896254643,0.04446874,58995.0,58994.0,0.447533]
[1724896255046,0.16446874,58995.0,58994.0,0.447533]
[1724896255254,0.16446874,58995.0,58994.0,0.086733]
[1724896255453,0.51762906,58995.0,58994.0,0.002]
[1724896255642,0.58932906,58995.0,58994.0,0.002]
[1724896256056,0.70932906,58995.0,58994.0,0.002]
[1724896257453,0.90066706,58995.0,58978.0,0.3608]
[1724896257645,0.90066706,58995.0,58972.0,0.3608]
[1724896257646,0.08476,58976.0,58972.0,0.3608]
[1724896257846,0.12,58975.0,58971.0,0.307766]
[1724896258046,0.3608,58982.0,58971.0,0.307766]
[1724896258047,0.29,58980.0,58971.0,0.307766]
[1724896258250,0.29863466,58980.0,58971.0,0.307766]
[1724896258451,0.084761,58975.0,58971.0,0.307766]
[1724896259049,0.084761,58975.0,58972.0,0.014]
[1724896259349,0.084761,58975.0,58972.0,0.028]
[1724896259552,0.085761,58975.0,58972.0,0.014]
[1724896259753,0.21263188,58980.0,58972.0,0.014]
[1724896260051,0.08476,58976.0,58972.0,0.014]
[1724896260356,0.21263188,58980.0,58972.0,0.014]
[1724896260755,0.002,58975.0,58972.0,0.3748]
[1724896261055,0.002,58975.0,58974.0,0.084761]
[1724896261251,0.00025439,58981.0,58980.0,0.084753]
[1724896261463,0.00025439,58981.0,58980.0,0.445553]
[1724896262358,0.00025439,58981.0,58980.0,0.084753]
[1724896262952,0.00125439,58981.0,58980.0,0.092753]
[1724896263160,0.00225439,58981.0,58980.0,0.100753]
[1724896268357,0.08700539,58981.0,58980.0,0.016]
[1724896269652,0.00225439,58981.0,58980.0,0.100753]
[1724896272357,0.00225439,58981.0,58980.0,0.461553]
[1724896273161,0.00225439,58981.0,58980.0,0.100753]
[1724896273362,0.00225439,58981.0,58980.0,0.461553]
[1724896276865,0.00225439,58981.0,58980.0,0.822353]
[1724896278768,0.03078555,58982.0,58981.0,0.169502]
[1724896279064,0.37472,59003.0,58996.0,0.084729]
[1724896279267,0.084727,58998.0,58997.0,0.158928]
[1724896279583,0.03089196,59003.0,59002.0,0.084721]
[1724896279868,0.86212,59016.0,59007.0,0.084714]
[1724896279869,0.00025439,59008.0,59007.0,0.084714]
[1724896280070,0.00025439,59008.0,59007.0,0.445514]
[1724896281277,0.00525439,59008.0,59007.0,0.446514]
[1724896282967,0.27753279,59008.0,59007.0,0.3618]
[1724896283168,0.084721,59002.0,59001.0,0.3608]
[1724896283675,0.204721,59002.0,59001.0,0.3608]
[1724896283869,0.204721,59002.0,58997.0,0.07445439]
[1724896283870,0.084727,58998.0,58997.0,0.00025439]
[1724896284176,0.26342531,58998.0,58997.0,0.00025439]
[1724896284477,0.38342531,58998.0,58997.0,0.00025439]
[1724896284974,0.38342531,58998.0,58997.0,0.001]
[1724896285180,0.67342531,58998.0,58997.0,0.001]
[1724896285480,0.204727,58998.0,58993.0,0.084734]
[1724896285676,0.204727,58998.0,58997.0,0.001]
[1724896286769,0.23564052,58998.0,58997.0,0.001]
[1724896287272,0.23564052,58998.0,58997.0,0.002]
[1724896287878,0.23664052,58998.0,58997.0,0.001]
[1724896288377,0.23564052,58998.0,58997.0,0.001]
[1724896288577,0.23764052,58998.0,58997.0,0.002]
[1724896292272,0.11764052,58998.0,58997.0,0.002]
[1724896292869,0.23764052,58998.0,58997.0,0.002]
[1724896299386,0.23764052,58998.0,58995.0,0.35452]
[1724896299586,0.24594342,58998.0,58995.0,0.439251]
[1724896300590,0.24694342,58998.0,58995.0,0.440251]
[1724896300789,0.24694342,58998.0,58984.0,0.3608]
[1724896300790,0.29,58996.0,58984.0,0.3608]
[1724896300987,0.29,58985.0,58979.0,0.0775]
[1724896301487,0.084749,58983.0,58979.0,0.0775]
[1724896301684,0.084749,58983.0,58980.0,0.084752]
[1724896302287,0.08475,58982.0,58980.0,0.084752]
[1724896302891,0.08475,58982.0,58979.0,0.0865]
[1724896303094,0.08475,58982.0,58980.0,0.008]
[1724896303487,0.084751,58981.0,58980.0,0.008]
[1724896303791,0.084751,58981.0,58979.0,0.0865]
[1724896303989,0.084751,58981.0,58980.0,0.007]
[1724896304189,0.445551,58981.0,58980.0,0.007]
[1724896304389,0.084751,58981.0,58980.0,0.007]
[1724896304587,0.084753,58980.0,58979.0,0.0775]
[1724896305899,0.086753,58980.0,58979.0,0.0775]
[1724896306096,0.11699637,58980.0,58979.0,0.0775]
[1724896307092,0.12099637,58980.0,58979.0,0.0775]
[1724896307492,0.11899637,58980.0,58979.0,0.0775]